Cogmind - Beta 10.2 @@@ ROGUE MODE // 2021.01.28 @ 18:12:43 Player: W_W Result: Destroyed by D-53 Grenadier with Mini Grenade Launcher Performance ------------- Evolutions (0) 0 Regions Visited (2) 400 Robots Destroyed (24) 120 Value Destroyed (486) 486 Prototype IDs (0) 0 Alien Tech Used (0) 0 Bonus (0) 0 TOTAL SCORE: 1006 Bonus ------- None Cogmind --------- Core Integrity 0/250 Matter 274/300 Energy 11/100 System Corruption 0% Temperature Cool (0) Movement Core (600) Ox11 Location -10/Mines Parts ------- > --- POWER (1) -------- (None) > --- PROPULSION (2) --- (None) > --- UTILITY (2) ------ Large Storage Unit Large Storage Unit > --- WEAPON (2) ------- EM Pulse Gun > --- INVENTORY (16) --- Ion Engine Light Ion Engine Light Nuclear Core Improved Heat Sink Improved Heat Sink Small Storage Unit High-capacity Battery (400) Medium Matter Pod (100) Improved Terrain Scanner ECM Suite Hammer Peak State ------------ > --- POWER ------------ Ion Engine > --- PROPULSION ------- Light Treads Light Treads > --- UTILITY ---------- Small Storage Unit Small Storage Unit > --- WEAPON ----------- Particle Gun Assault Rifle > --- INVENTORY -------- Ion Engine Light Ion Engine Cooling System Medium Matter Pod Improved Terrain Scanner ECM Suite Small Laser Mining Laser [Rating: 9] Favorites ----------- Power Ion Engine Engine Ion Engine Propulsion Light Treads Treads Light Treads Utility Large Storage Unit Storage Large Storage Unit Weapon Assault Rifle Energy Gun Small Laser Ballistic Gun Assault Rifle Build | -11 -10 -10 ------- Run | Scr Mat Min Slots Evolved . | . . . Power . | . . . Propulsion . | . . . Utility . | . . . Weapon . | . . . Parts Attached 22 | 7 9 6 Power 2 | 1 . 1 Engine 2 | 1 . 1 Core . | . . . Reactor . | . . . Propulsion 3 | 2 1 . Treads 3 | 2 1 . Leg . | . . . Wheel . | . . . Hover . | . . . Flight . | . . . Utility 4 | 2 2 . Device . | . . . Storage 4 | 2 2 . Processor . | . . . Hackware . | . . . Protection . | . . . Artifact . | . . . Weapon 13 | 2 6 5 Energy Gun 11 | 2 5 4 Energy Cannon . | . . . Ballistic Gun 2 | . 1 1 Ballistic Cannon . | . . . Launcher . | . . . Special Weapon . | . . . Impact Weapon . | . . . Slashing Weapon . | . . . Piercing Weapon . | . . . Special Melee Weapon . | . . . Unidentified Prototypes . | . . . Parts Lost 12 | . 3 9 Power 2 | . . 2 Propulsion 2 | . . 2 Utility . | . . . Weapon 8 | . 3 5 Highest Loss Streak 9 | . 1 9 Average Slot Usage (%) 96 | . 97 78 Engine 13 | . 14 9 Treads 27 | . 28 18 Storage 28 | . 28 28 Energy Gun 13 | . 13 14 Ballistic Gun 12 | . 12 7 Naked Turns . | . . . Heaviest Build 42 | 16 42 40 Greatest Support 40 | 40 40 40 Greatest Overweight (x) 3 | 3 1 . Average Overweight (x) . | . . . Largest Inventory Capacity 16 | 8 16 16 Average Capacity 13 | 7 13 16 Most Carried 16 | 6 16 16 Average Carried 11 | 2 11 14 Final Capacity 16 | 8 16 16 Final Carried 16 | 6 16 11 Class Distribution -------------------- 100% | Mutant Dominant Class ---------------- Mutant | -10/Materials Mutant | -10/Mines Resources | -11 -10 -10 ----------- Run | Scr Mat Min Matter Collected 561 | 338 223 . Remotely . | . . . Salvage Created 893 | 234 606 53 Parts 59 | 19 36 4 Haulers Intercepted 1 | . 1 . Recyclers Shooed 1 | . 1 . Parts Field Recycled . | . . . Retrieved Matter . | . . . Parts Self-Destructed . | . . . Prevented . | . . . Kills | -11 -10 -10 ------- Run | Scr Mat Min Combat Hostiles Destroyed 11 | . 10 1 Guns 10 | . 10 . AOE 1 | . . 1 Classes Destroyed 9 | 3 5 1 Worker 3 | 2 . 1 Builder 1 | . 1 . Tunneler 4 | 4 . . Hauler 1 | . 1 . Recycler 3 | 1 2 . Mechanic 1 | . 1 . Swarmer 3 | . 3 . Grunt 7 | . 7 . Demolisher 1 | . . 1 Best Kill Streak 5 | 5 4 2 Combat Bots Only 2 | . 2 1 Max Kills in Single Turn 2 | 1 1 2 Gunslinging . | . . . Exploded 1 | . . 1 Melee . | . . . Uniques/NPCs Destroyed . | . . . Combat | -11 -10 -10 -------- Run | Scr Mat Min Damage Taken 1361 | 40 362 959 Core 258 | . 44 214 Absorbed by Shields . | . . . Core Remaining (%) 100 | 100 . . Volleys Fired 78 | 14 56 8 Largest 2 | 2 2 2 Hottest 85 | 80 85 60 Shots Fired 123 | 24 90 9 Gun 123 | 24 90 9 Cannon . | . . . Launcher . | . . . Special . | . . . Kinetic 52 | . 51 1 Thermal 46 | 10 33 3 Explosive . | . . . Electromagnetic 25 | 14 6 5 Robot Hit Streak 13 | 7 13 4 Robot Miss Streak 3 | 2 3 2 Penetration Max . | . . . Secondary Targets 1 | . 1 . Max Gunslinging Chain 1 | . 1 . Shots Hit Robots 79 | 12 62 5 Core Hits 38 | 8 26 4 Critical Hits . | . . . Critical Kills . | . . . Critical Parts Destroyed . | . . . Melee Attacks . | . . . Impact . | . . . Slashing . | . . . Piercing . | . . . Sneak Attacks . | . . . Combat Hostiles . | . . . Follow-up Attacks . | . . . Damage Inflicted 1135 | 166 795 174 Guns 943 | 135 740 68 Cannons . | . . . Explosions 170 | 31 33 106 Melee . | . . . Ramming 22 | . 22 . Kinetic 423 | . 423 . Thermal 491 | 64 297 130 Explosive . | . . . Electromagnetic 199 | 102 53 44 Impact . | . . . Slashing . | . . . Piercing . | . . . Highest Corruption . | . . . Average Corruption . | . . . Corruption Purged . | . . . Overload Shots . | . . . Overflow Damage 2 | . 2 . Projectiles . | . . . Explosions 2 | . 2 . Melee . | . . . Knockbacks . | . . . Impact . | . . . Kinetic . | . . . Secondary . | . . . Self-Inflicted Damage 40 | 40 . . Shots 1 | 1 . . Rammed 4 | . 4 . Targets Rammed 4 | . 4 . Kicked . | . . . Crushed . | . . . Highest Temperature 198 | 102 198 20 Average Temperature 57 | 56 61 10 Received Heat Transfer 138 | . 138 . Siege Activations . | . . . Robots Corrupted . | . . . Combat Hostiles . | . . . Parts Fried . | . . . Impact Corruptions . | . . . Robots Melted . | . . . Combat Hostiles . | . . . Parts Melted 1 | . 1 . Heat Transferred 947 | 125 660 162 Parts Sabotaged . | . . . Parts Stolen . | . . . Parts Stripped . | . . . Power Chain Reactions 3 | 1 1 1 Missiles Intercepted . | . . . Alert | -11 -10 -10 ------- Run | Scr Mat Min Peak Influence 220 | 35 220 26 Initial 22 | . 22 . Average 67 | 18 77 1 Maximum Alert Level 1 | . 1 . Low Security (%) 93 | 100 92 100 Level 1 6 | . 7 . Level 2 . | . . . Level 3 . | . . . Level 4 . | . . . Level 5 . | . . . High Security . | . . . Max Security . | . . . Squads Dispatched 4 | . 4 . Investigation 4 | . 4 . Extermination . | . . . Reinforcement . | . . . Assault . | . . . Garrison . | . . . Intercept . | . . . Construction Impeded . | . . . Haulers Reinforced . | . . . Stealth | -11 -10 -10 --------- Run | Scr Mat Min Distress Signals 3 | . 3 . Communications Jammed . | . . . Distress Signals . | . . . Times Spotted 28 | . 22 6 Peak Tracking Total 9 | . 3 9 Tactical Retreats . | . . . Traps | -11 -10 -10 ------- Run | Scr Mat Min Traps Triggered 4 | . 4 . Indirectly . | . . . Trap Hack Attempts . | . . . Triggered . | . . . Disarmed . | . . . Reprogrammed . | . . . Reused . | . . . Traps Extracted . | . . . Installed . | . . . Triggered . | . . . Machines | -11 -10 -10 ---------- Run | Scr Mat Min Machines Disabled 1 | . 1 . Max in Single Turn 1 | . 1 . Machines Sabotaged 1 | . 1 . Garrisons Compromised . | . . . Overloaded Fab Kills . | . . . Fab Network Shutdowns . | . . . Hacking | -11 -10 -10 --------- Run | Scr Mat Min Machines Accessed 10 | . 10 . Terminals 8 | . 8 . Fabricators . | . . . Repair Stations 1 | . 1 . Recycling Units 1 | . 1 . Scanalyzers . | . . . Garrison Access . | . . . Total Hacks 22 | . 22 . Successful 12 | . 12 . Failed 10 | . 10 . Catastrophic 1 | . 1 . Database Lockouts . | . . . Manual 22 | . 22 . Terminals 20 | . 20 . Fabricators . | . . . Repair Stations 1 | . 1 . Recycling Units 1 | . 1 . Scanalyzers . | . . . Garrison Access . | . . . Terminal Hacks 5 | . 5 . Part Schematic 1 | . 1 . Unreport Threat 1 | . 1 . Recall Investigation 2 | . 2 . Recall Reinforcements 1 | . 1 . Fabricator Hacks . | . . . Repair Station Hacks 1 | . 1 . Refit 1 | . 1 . Recycling Unit Hacks . | . . . Scanalyzer . | . . . Garrison Access Hacks . | . . . Unauthorized Hacks 6 | . 6 . Terminals 5 | . 5 . Botnet 4 | . 4 . Sabotage 1 | . 1 . Fabricators . | . . . Repair Stations . | . . . Recycling Units 1 | . 1 . Tunnel 1 | . 1 . Scanalyzers . | . . . Garrison Access . | . . . Data Cores Recovered . | . . . Used . | . . . Hacking Detections 5 | . 5 . Full Trace Events . | . . . Feedback Events . | . . . Feedback Blocked . | . . . Robot Schematics Acquired . | . . . Robots Built . | . . . Matter . | . . . Time . | . . . Total Robot Build Rating . | . . . Part Schematics Acquired 1 | . 1 . Parts Built . | . . . Matter . | . . . Time . | . . . Total Part Build Rating . | . . . Parts Repaired . | . . . Time . | . . . Parts Recycled . | . . . Recycled Matter . | . . . Retrieved Matter . | . . . Retrieved Components . | . . . Parts Scanalyzed . | . . . Part Schematics Acquired . | . . . Parts Damaged . | . . . Bothacking | -11 -10 -10 ------------ Run | Scr Mat Min Used RIF Installer . | . . . Robots Hacked . | . . . Non-combat . | . . . Combat . | . . . Robot Hacks Applied . | . . . Relay Couplers Released . | . . . Robots Rewired . | . . . Allies Hacked . | . . . Hacks Repelled . | . . . Allies | -11 -10 -10 -------- Run | Scr Mat Min Total Allies 1 | . . 1 Largest Group 1 | . . 1 Highest-Rated Group 31 | . . 31 Highest-Rated Ally 31 | . . 31 Total Orders . | . . . Ally Attacks 18 | . . 18 Total Damage 299 | . . 299 Kills 1 | . . 1 Allies Corrupted . | . . . Allies Melted . | . . . Intel | -11 -10 -10 ------- Run | Scr Mat Min Robot Analysis Total . | . . . Derelict Logs Recovered . | . . . Drone Launches . | . . . Drone Recoveries . | . . . Exploration | -11 -10 -10 ------------- Run | Scr Mat Min Turns Passed 1593 | 180 1356 57 Spaces Moved 818 | 79 718 21 Core 20 | 20 . . Treads 798 | 59 718 21 Legs . | . . . Wheels . | . . . Hover . | . . . Flight . | . . . Fastest Speed 50 | 50 160 160 Average Speed 162 | 160 162 160 Slowest Speed 200 | 200 180 160 Overloaded Moves . | . . . Propulsion Burnouts . | . . . Robots Hopped . | . . . Cave-ins Triggered . | . . . Exploration Rate (%) 36 | 3 98 8 Regions Visited 2 Branch Regions 1 Pre-discovered Areas 1 | . 1 . Known Exits Taken . | . . . Unknown Exits Taken 2 | 1 1 . Scrap Searched . | . . . Spaces Dug . | . . . Terrain Destroyed 8 | 4 1 3 Melee . | . . . Projectile . | . . . AOE 8 | 4 1 3 Terrain Rammed . | . . . Walls Destroyed . | . . . Machines Disabled . | . . . Actions | -11 -10 -10 --------- Run | Scr Mat Min Total 956 | 106 815 35 Wait 8 | . 8 . Move 816 | 78 717 21 Hop . | . . . Pick Up 23 | 7 16 . Fast Attach 9 | 6 3 . Attach 9 | 1 3 5 Detach . | . . . Swap 4 | . 3 1 Drop 5 | . 5 . Fire 78 | 14 56 8 Melee . | . . . Ram . | . . . Kick . | . . . Crush 4 | . 4 . Escape Stasis . | . . . Rewire . | . . . Trap . | . . . Miscellaneous . | . . . Route ------- -11/Scrapyard -10/Materials (discovered 5 exits: [*Mat x3] / [*Min x2]) -10/Mines History --------- Turn | Location | Event 14 | -11/Scrapyard | Discovered new exit (range 16) 181 | -11/Scrapyard | Entered Materials 220 | -10/Materials | Discovered new exit (range 15) 311 | -10/Materials | Build established: Mutant 460 | -10/Materials | Discovered new exit (range 15) 882 | -10/Materials | Discovered new exit (range 6) 1252 | -10/Materials | Discovered new exit (range 16) 1436 | -10/Materials | Discovered new exit (range 9) 1537 | -10/Materials | Entered Mines 1538 | -10/Mines | Assembled infested the area 1540 | -10/Mines | Received a Mining Laser from a helpful Derelict 1585 | -10/Mines | Core integrity fell below 50% 1591 | -10/Mines | Core integrity fell below 20% 1594 | -10/Mines | Destroyed by D-53 Grenadier with Mini Grenade Launcher Last Messages --------------- 01565_ The unstable cave ceiling collapses. 01566_ Assault Rifle destroyed. 01567_ The unstable cave ceiling collapses. 01567_ K-01 Serf collects debris. 01568_ Ion Engine destroyed. 01572_ K-01 Serf collects debris. 01572_ Lgt. Treads destroyed. 01574_ Sml. Laser destroyed. 01577_ Lgt. Assault Rifle destroyed. 01578_ Sml. Laser destroyed. 01579_ The unstable cave ceiling collapses. 01583_ Ion Engine destroyed. 01583_ Med. Laser destroyed. 01585_ The unstable cave ceiling collapses. 01590_ K-01 Serf collects debris. 01590_ Chain reaction triggered in Lgt. Deuterium Engine. 01590_ D-53 Grenadier destroyed. 01590_ K-01 Serf destroyed. 01591_ The unstable cave ceiling collapses. 01593_ K-01 Serf collects debris. Map ----- +----------------------------------------------------+ | ??????????????????????????????????????????????? | | ??????????????????????????????????????????????? | | ??????????????????????????????????????????????? | | ??????????????????????????????????????????????? | | ??????????????????????????????????????????????? | | ??????????????????????????????????????????????? | | ??????????????????????????????????????????????? | | ??????????????????????????????????????????????? | | ??????????????????????????????????????????????? | | ??????????????????????????????????????###?????? | | ?????????????????????????????????????? #?????? | | ?????????????????????????????????????" #?????? | | ?????????????????????????????????????" ??????? | | ????????????????????????????????????"" ??????? | | ???????????????????????????????????? ???????? | | ???????????????????????????????????? ???????? | | ???????????????????# ### ####### ##???????? | | ???????????????????# % #???????? | | ???????????????????????######## #= #???????? | | ?????????????????????????###### k #???????? | | ??????????????????????#### ; #???????? | | ?????????????????????## = #???????? | | ????????????????????## ]%%=# #???????? | | ????????????????????# d # #????????? | | ????????????????????# # #?????????? | | ????????????????????# @ # #?????????? | | ????????????????????# ##"#?????????? | | ????????????????????# ##%#?????????? | | ????????????????????## #####"#?????????? | | ?????????????????????# ##???? ??????????? | | ?????????????????????# #????? ??????????? | | ?????????????????????#########?????#??????????? | | ??????????????????????????????????????????????? | | ??????????????????????????????????????????????? | | ??????????????????????????????????????????????? | | ??????????????????????????????????????????????? | | ??????????????????????????????????????????????? | | ??????????????????????????????????????????????? | | ??????????????????????????????????????????????? | | ??????????????????????????????????????????????? | | ??????????????????????????????????????????????? | | ??????????????????????????????????????????????? | | ??????????????????????????????????????????????? | | ??????????????????????????????????????????????? | | ??????????????????????????????????????????????? | | ??????????????????????????????????????????????? | | ??????????????????????????????????????????????? | | ??????????????????????????????????????????????? | | ??????????????????????????????????????????????? | | ??????????????????????????????????????????????? | +----------------------------------------------------+ Best States ------------- Heat Dissipation 25 Energy Generation 10 Energy Capacity 250 Matter Stores 300 Matter Capacity 300 Sight Range 16 Terrain Scan Density 10 Evasion (%) 40 Recoil Reduction 2 Item Schematics ----------------- Hcp. Storage Unit | -10/Materials | Hacked Robot Schematics ------------------ None Fabricated ------------ Nothing Alien Tech Used ----------------- None Achievements -------------- None Challenges ------------ None Game ------ Seed FissionUltimateGun Manual? 0 Play Time 00:11:08 Cumulative 125.9 hours Start 2021.01.28 @ 18:02:36 End 2021.01.28 @ 18:12:43 Sessions 1 Manual Loads 0 Difficulty Rogue Special Mode None Game No. 97 Rogue 97 Adventurer 0 Explorer 0 Win Type - Total 0 Types 0/0/0/0/0/0/0/0/0 Lore% 46 Gallery% 55 Achievement% 36 Wizard Run 0 Options --------- ASCII 0 Keyboard 1 Movement Numpad Keybinds 0 Fullscreen 1 Font 18/SmallcapsGlow Map View 76x50 Tactical HUD 1 Map Filters NONE Filters NONE Steam 1 RUN: a04b3e48-e9f9-4bb1-8f60-34e962fd45d7